fUSD/lending_fUSD_20250620
["ID","MTS","AMOUNT","RATE_DAILY","PERIOD"]
[366655752,1750380642087,-229.39546198,0.00028216,2]
[366655753,1750380642096,-151.0,0.00028216,2]
[366655754,1750380642106,-225.0,0.00028216,2]
[366655755,1750380642119,-207.4,0.00028216,2]
[366655756,1750380642129,-500.0,0.00028216,2]
[366655757,1750380642139,-500.0,0.00028216,2]
[366655758,1750380642148,-416.11886961,0.00028216,2]
[366655759,1750380642158,-3235.22799373,0.00028251,2]
[366655760,1750380642168,-12844.7981017,0.00028268,2]
[366655761,1750380642178,-2030.296672,0.00028271,2]
[366655762,1750380642188,-2081.6485,0.00028281,2]
[366655763,1750380642198,-165.09,0.000283,2]
[366655764,1750380642208,-455.38,0.000283,2]
[366655765,1750380642218,-455.38,0.000283,2]
[366655766,1750380642228,-553.03390367,0.000283,15]
[366655767,1750380642238,-2105.41764886,0.00028326,2]
[366655768,1750380642247,-202.0,0.00028327,2]
[366655769,1750380642257,-3235.22799373,0.00028331,2]
[366655770,1750380642267,-300.0,0.00028352,2]
[366655771,1750380642276,-2183.31810187,0.00028381,2]
[366655772,1750380642287,-2276.80370876,0.00028383,18]
[366655773,1750380642296,-3235.22799373,0.00028411,2]
[366655774,1750380642307,-2264.10087164,0.00028436,2]
[366655775,1750380642316,-200.0,0.00028489,2]
[366655776,1750380642325,-2347.87260389,0.00028491,2]
[366655777,1750380642335,-490.0,0.00028491,2]
[366655778,1750380642344,-490.0,0.00028491,4]
[366655779,1750380642354,-490.0,0.00028491,4]
[366655780,1750380642363,-490.0,0.00028491,2]
[366655781,1750380642373,-490.0,0.00028491,4]
[366655782,1750380642383,-490.0,0.00028491,4]
[366655783,1750380642392,-509.23,0.00028491,2]
[366655784,1750380642401,-3235.22799373,0.00028491,2]
[366655785,1750380642411,-174.60925106,0.00028495,2]
[366655786,1750380642420,-1000.0,0.00028496,2]
[366655787,1750380642430,-2434.74389024,0.00028546,2]
[366655788,1750380642440,-151.7045618,0.00028556,2]
[366655789,1750380642450,-159.72398407,0.00028559,2]
[366655790,1750380642459,-481.7378,0.00028567,2]
[366655791,1750380642469,-1000.0,0.00028567,2]
[366655792,1750380642478,-490.0,0.00028567,4]
[366655793,1750380642488,-490.0,0.00028567,4]
[366655794,1750380642498,-443.87828784,0.00028567,4]
[366655795,1750380642507,-490.0,0.00028567,4]
[366655796,1750380642517,-378.55966487,0.00028567,4]
[366655797,1750380642526,-490.0,0.00028567,4]
[366655798,1750380642536,-490.0,0.00028567,4]
[366655799,1750380642545,-1087.27,0.00028567,4]
[366655800,1750380642556,-490.0,0.00028567,4]
[366655801,1750380642565,-490.0,0.00028567,4]
[366655802,1750380642575,-490.0,0.00028567,4]
[366655803,1750380642584,-490.0,0.00028567,4]
[366655804,1750380642594,-6310.8249,0.00028567,2]
[366655805,1750380642604,-7000.00000199,0.00028569,14]
[366655806,1750380642614,-5000.0,0.0002857,2]
[366655807,1750380642623,-795.5348,0.0002857,3]
[366655808,1750380642633,-490.0,0.00028571,4]
[366655809,1750380642643,-490.0,0.00028571,4]
[366655810,1750380642652,-490.0,0.00028571,4]
[366655811,1750380642662,-490.0,0.00028571,4]
[366655812,1750380642671,-490.0,0.00028571,4]
[366655813,1750380642681,-490.0,0.00028571,4]
[366655814,1750380642691,-490.0,0.00028571,4]
[366655815,1750380642701,-490.0,0.00028571,4]
[366655816,1750380642711,-567.46,0.00028571,4]
[366655817,1750380642721,-490.0,0.00028571,4]
[366655818,1750380642731,-1735.36,0.00028571,4]
[366655819,1750380642740,-490.0,0.00028571,4]
[366655820,1750380642749,-490.0,0.00028571,4]
[366655821,1750380642759,-490.0,0.00028571,4]
[366655822,1750380642768,-641.02,0.00028571,4]
[366655823,1750380642778,-490.0,0.00028571,4]
[366655824,1750380642787,-490.0,0.00028571,4]
[366655825,1750380642796,-490.0,0.00028571,4]
[366655826,1750380642806,-490.0,0.00028571,4]
[366655827,1750380642815,-740.65,0.00028571,4]
[366655828,1750380642825,-507.81,0.00028571,4]
[366655829,1750380642834,-490.0,0.00028571,4]
[366655830,1750380642843,-738.78,0.00028571,4]
[366655831,1750380642853,-490.0,0.00028571,4]
[366655832,1750380642862,-2695.35,0.00028571,4]
[366655833,1750380642872,-490.0,0.00028571,4]
[366655834,1750380642881,-490.0,0.00028571,4]
[366655835,1750380642890,-490.0,0.00028571,4]
[366655836,1750380642900,-771.61,0.00028571,4]
[366655837,1750380642909,-3423.07,0.00028571,4]
[366655838,1750380642919,-490.0,0.00028571,4]
[366655839,1750380642928,-490.0,0.00028571,4]
[366655840,1750380642938,-490.0,0.00028571,4]
[366655841,1750380642948,-3278.23,0.00028571,4]
[366655842,1750380642957,-1540.38,0.00028571,4]
[366655843,1750380642967,-969.38,0.00028571,4]
[366655844,1750380642977,-499.14,0.00028571,4]
[366655845,1750380642987,-740.58,0.00028571,4]
[366655846,1750380642996,-1078.2,0.00028571,4]
[366655847,1750380643006,-1537.241569,0.00028571,4]
[366655848,1750380643016,-158.949067,0.00028571,4]
[366655849,1750380643026,-612.13,0.00028571,4]
[366655850,1750380643036,-161.755074,0.00028571,4]
[366655851,1750380643046,-224.153777,0.00028571,4]
[366655852,1750380643055,-3235.22799373,0.00028572,2]
[366655853,1750380643065,-578.32498712,0.00028575,2]
[366655854,1750380643074,-197.10370065,0.00028578,2]
[366655855,1750380643084,-490.0,0.00028595,4]
[366655856,1750380643099,-490.0,0.00028595,4]
[366655857,1750380643111,-490.0,0.00028595,4]
[366655858,1750380643124,-803.92,0.00028595,4]
[366655859,1750380643136,-490.0,0.00028596,4]
[366655860,1750380643146,-490.0,0.00028596,4]
[366655861,1750380643157,-490.0,0.00028596,4]
[366655862,1750380643166,-490.0,0.00028596,4]
[366655863,1750380643176,-490.0,0.00028596,4]
[366655864,1750380643186,-169.32761941,0.00028596,4]
[366655865,1750380643195,-490.0,0.00028596,4]
[366655866,1750380643206,-1000.0,0.000286,10]
[366655867,1750380643215,-2524.82941417,0.00028601,2]
[366655868,1750380643225,-151.70456176,0.00028611,2]
[366655869,1750380643235,-2276.80370876,0.00028624,19]
[366655870,1750380643244,-150.0,0.00028627,2]
[366655871,1750380643254,-833.98582983,0.00028642,2]
[366655872,1750380643263,-13372.3137788,0.00028645,2]
[366655873,1750380643273,-26744.6275576,0.00028646,2]
[366655874,1750380643282,-23863.3810493,0.00028646,2]
[366655875,1750380643292,-13372.3137788,0.00028647,2]
[366655876,1750380643302,-11931.6905247,0.00028647,2]
[366655877,1750380643311,-13372.3137788,0.00028648,2]
[366655878,1750380643320,-509.23,0.00028649,2]
[366655879,1750380643330,-13372.3137788,0.00028649,2]
[366655880,1750380643340,-490.0,0.0002865,4]
[366655881,1750380643349,-490.0,0.0002865,4]
[366655882,1750380643359,-490.0,0.0002865,4]
[366655883,1750380643368,-490.0,0.0002865,4]
[366655884,1750380643378,-490.0,0.0002865,4]
[366655885,1750380643387,-490.0,0.0002865,4]
[366655886,1750380643398,-500.0,0.0002865,4]
[366655887,1750380643407,-490.0,0.0002865,4]
[366655888,1750380643417,-490.0,0.0002865,4]
[366655889,1750380643426,-490.0,0.0002865,4]
[366655890,1750380643436,-490.0,0.0002865,4]
[366655891,1750380643446,-490.0,0.0002865,4]
[366655892,1750380643456,-490.0,0.0002865,4]
[366655893,1750380643465,-490.0,0.0002865,4]
[366655894,1750380643474,-490.0,0.0002865,4]
[366655895,1750380643484,-344.77062978,0.0002865,4]
[366655896,1750380643493,-387.90079858,0.0002865,4]
[366655897,1750380643502,-490.0,0.0002865,4]
[366655898,1750380643512,-510.65990025,0.0002865,4]
[366655899,1750380643522,-490.0,0.0002865,4]
[366655900,1750380643531,-490.0,0.0002865,4]
[366655901,1750380643541,-490.0,0.0002865,4]
[366655902,1750380643550,-567.73,0.0002865,4]
[366655903,1750380643560,-490.0,0.0002865,4]
[366655904,1750380643569,-490.0,0.0002865,4]
[366655905,1750380643579,-490.0,0.0002865,4]
[366655906,1750380643588,-744.52,0.0002865,4]
[366655907,1750380643598,-490.0,0.0002865,4]
[366655908,1750380643608,-490.0,0.0002865,4]
[366655909,1750380643617,-495.38,0.0002865,4]
[366655910,1750380643627,-490.0,0.0002865,4]
[366655911,1750380643636,-490.0,0.0002865,4]
[366655912,1750380643646,-490.0,0.0002865,4]
[366655913,1750380643656,-490.0,0.0002865,4]
[366655914,1750380643665,-490.0,0.0002865,4]
[366655915,1750380643675,-490.0,0.0002865,4]
[366655916,1750380643684,-490.0,0.0002865,4]
[366655917,1750380643694,-374.62,0.0002865,4]
[366655918,1750380643704,-490.0,0.0002865,4]
[366655919,1750380643713,-490.0,0.0002865,4]
[366655920,1750380643724,-490.0,0.0002865,4]
[366655921,1750380643734,-490.0,0.0002865,4]
[366655922,1750380643744,-490.0,0.0002865,4]
[366655923,1750380643755,-490.0,0.0002865,4]
[366655924,1750380643764,-640.36,0.0002865,4]
[366655925,1750380643774,-490.0,0.0002865,4]
[366655926,1750380643784,-490.0,0.0002865,4]
[366655927,1750380643793,-490.0,0.0002865,4]
[366655928,1750380643804,-490.0,0.0002865,4]
[366655929,1750380643814,-490.0,0.0002865,4]
[366655930,1750380643835,-490.0,0.0002865,4]
[366655931,1750380643848,-629.44,0.0002865,4]
[366655932,1750380643858,-490.0,0.0002865,4]
[366655933,1750380643869,-490.0,0.0002865,4]
[366655934,1750380643879,-490.0,0.0002865,4]
[366655935,1750380643890,-490.0,0.0002865,4]
[366655936,1750380643900,-490.0,0.0002865,4]
[366655937,1750380643910,-864.38,0.0002865,4]
[366655938,1750380643920,-490.0,0.0002865,4]
[366655939,1750380643930,-490.0,0.0002865,4]
[366655940,1750380643940,-490.0,0.0002865,4]
[366655941,1750380643950,-490.0,0.0002865,4]
[366655942,1750380643960,-490.0,0.0002865,4]
[366655943,1750380643970,-490.0,0.0002865,4]
[366655944,1750380643979,-490.0,0.0002865,4]
[366655945,1750380643989,-490.0,0.0002865,4]
[366655946,1750380643999,-490.0,0.0002865,4]
[366655947,1750380644009,-490.0,0.0002865,4]
[366655948,1750380644019,-490.0,0.0002865,4]
[366655949,1750380644029,-490.0,0.0002865,4]
[366655950,1750380644039,-490.0,0.0002865,4]
[366655951,1750380644048,-490.0,0.0002865,4]
[366655952,1750380644058,-490.0,0.0002865,4]
[366655953,1750380644068,-490.0,0.0002865,4]
[366655954,1750380644078,-490.0,0.0002865,4]
[366655955,1750380644088,-490.0,0.0002865,4]
[366655956,1750380644098,-845.58,0.0002865,4]
[366655957,1750380644109,-722.35,0.0002865,4]
[366655958,1750380644122,-490.0,0.0002865,4]
[366655959,1750380644132,-26744.6275576,0.0002865,2]
[366655960,1750380644142,-684.76,0.0002865,4]
[366655961,1750380644153,-572.2,0.0002865,4]
[366655962,1750380644163,-490.0,0.0002865,4]
[366655963,1750380644174,-497.02,0.0002865,4]
[366655964,1750380644184,-23863.3810493,0.0002865,2]
[366655965,1750380644195,-490.0,0.0002865,4]
[366655966,1750380644206,-490.0,0.0002865,4]
[366655967,1750380644216,-490.0,0.0002865,4]
[366655968,1750380644226,-490.0,0.0002865,4]
[366655969,1750380644236,-490.0,0.0002865,4]
[366655970,1750380644246,-490.0,0.0002865,4]
[366655971,1750380644257,-490.0,0.0002865,4]
[366655972,1750380644267,-490.0,0.0002865,4]
[366655973,1750380644284,-490.0,0.0002865,4]
[366655974,1750380644294,-490.0,0.0002865,4]
[366655975,1750380644305,-490.0,0.0002865,4]
[366655976,1750380644316,-490.0,0.0002865,4]
[366655977,1750380644326,-490.0,0.0002865,4]
[366655978,1750380644336,-490.0,0.0002865,4]
[366655979,1750380644347,-490.0,0.0002865,4]
[366655980,1750380644357,-490.0,0.0002865,4]
[366655981,1750380644368,-490.0,0.0002865,4]
[366655982,1750380644379,-490.0,0.0002865,4]
[366655983,1750380644741,-490.0,0.0002865,4]
[366655984,1750380644753,-340.2856794,0.0002865,4]
[366655985,1750380644763,-490.0,0.0002865,4]
[366655986,1750380644773,-490.0,0.0002865,4]
[366655987,1750380644783,-490.0,0.0002865,4]
[366655988,1750380644792,-490.0,0.0002865,4]
[366655989,1750380644802,-490.0,0.0002865,4]
[366655990,1750380644812,-490.0,0.0002865,4]
[366655991,1750380644821,-490.0,0.0002865,4]
[366655992,1750380644832,-490.0,0.0002865,4]
[366655993,1750380644843,-490.0,0.0002865,4]
[366655994,1750380644852,-490.0,0.0002865,4]
[366655995,1750380644863,-587.98,0.0002865,4]
[366655996,1750380644873,-490.0,0.0002865,4]
[366655997,1750380644883,-490.0,0.0002865,4]
[366655998,1750380644892,-490.0,0.0002865,4]
[366655999,1750380644902,-490.0,0.0002865,4]
[366656000,1750380644913,-490.0,0.0002865,4]
[366656001,1750380644922,-490.0,0.0002865,4]
[366656002,1750380644933,-490.0,0.0002865,4]
[366656003,1750380644943,-490.0,0.0002865,4]
[366656004,1750380644953,-490.0,0.0002865,4]
[366656005,1750380644963,-490.0,0.0002865,4]
[366656006,1750380644973,-490.0,0.0002865,4]
[366656007,1750380644983,-490.0,0.0002865,4]
[366656008,1750380644994,-490.0,0.0002865,4]
[366656009,1750380645004,-490.0,0.0002865,4]
[366656010,1750380645014,-490.0,0.0002865,4]
[366656011,1750380645025,-490.0,0.0002865,4]
[366656012,1750380645034,-490.0,0.0002865,4]
[366656013,1750380645044,-490.0,0.0002865,4]
[366656014,1750380645058,-490.0,0.0002865,4]
[366656015,1750380645068,-408.20005968,0.0002865,4]
[366656016,1750380645078,-490.0,0.0002865,4]
[366656017,1750380645089,-490.0,0.0002865,4]
[366656018,1750380645100,-490.0,0.0002865,4]
[366656019,1750380645112,-557.66,0.0002865,4]
[366656020,1750380645125,-490.0,0.0002865,4]
[366656021,1750380645136,-490.0,0.0002865,4]
[366656022,1750380645146,-515.83820735,0.0002865,4]
[366656023,1750380645157,-490.0,0.0002865,4]
[366656024,1750380645169,-490.0,0.0002865,4]
[366656025,1750380645180,-490.0,0.0002865,4]
[366656026,1750380645191,-40116.9413364,0.0002865,2]
[366656027,1750380645203,-3235.22799373,0.00028652,2]
[366656028,1750380645214,-509.23,0.00028655,2]
[366656029,1750380645227,-53489.2551152,0.00028655,2]
[366656030,1750380645238,-2618.2481025,0.00028656,2]
[366656031,1750380645250,-93606.1964515,0.00028656,2]
[366656032,1750380645261,-95453.5241973,0.00028656,2]
[366656033,1750380645271,-195.86353058,0.00028656,2]
[366656034,1750380645281,-13372.3137788,0.00028656,2]
[366656035,1750380645291,-13372.3137788,0.00028657,2]
[366656036,1750380645300,-47726.7620986,0.00028657,2]
[366656037,1750380645311,-199.80632295,0.00028659,2]
[366656038,1750380645321,-500.0,0.00028659,2]
[366656039,1750380645330,-500.0,0.00028659,2]
[366656040,1750380645340,-500.0,0.00028659,2]
[366656041,1750380645350,-207.97669556,0.00028659,2]
[366656042,1750380645360,-190.51490801,0.00028659,2]
[366656043,1750380645370,-500.0,0.00028659,2]
[366656044,1750380645380,-500.0,0.00028659,2]
[366656045,1750380645390,-500.0,0.00028659,2]
[366656046,1750380645400,-174.49690037,0.00028659,2]
[366656047,1750380645410,-600.0,0.00028659,2]
[366656048,1750380645420,-509.23,0.00028659,2]
[366656049,1750380645430,-11931.6905247,0.00028659,2]
[366656050,1750380645439,-490.0,0.0002866,4]
[366656051,1750380645449,-490.0,0.0002866,4]
[366656052,1750380645459,-490.0,0.0002866,4]
[366656053,1750380645469,-339.31691727,0.0002866,4]
[366656054,1750380645480,-490.0,0.0002866,4]
[366656055,1750380645489,-490.0,0.0002866,4]
[366656056,1750380645500,-490.0,0.0002866,4]
[366656057,1750380645510,-490.0,0.0002866,4]
[366656058,1750380645521,-490.0,0.0002866,4]
[366656059,1750380645532,-490.0,0.0002866,4]
[366656060,1750380645543,-490.0,0.0002866,4]
[366656061,1750380645554,-490.0,0.0002866,4]
[366656062,1750380645565,-490.0,0.0002866,4]
[366656063,1750380645575,-490.0,0.0002866,4]
[366656064,1750380645586,-490.0,0.0002866,4]
[366656065,1750380645597,-490.0,0.0002866,4]
[366656066,1750380645608,-490.0,0.0002866,4]
[366656067,1750380645619,-490.0,0.0002866,4]
[366656068,1750380645629,-490.0,0.0002866,4]
[366656069,1750380645640,-490.0,0.0002866,4]
[366656070,1750380645650,-490.0,0.0002866,4]
[366656071,1750380645661,-490.0,0.0002866,4]
[366656072,1750380645672,-490.0,0.0002866,4]
[366656073,1750380645682,-500.0,0.0002866,4]
[366656074,1750380645692,-613.34821448,0.0002866,4]
[366656075,1750380645702,-1000.0,0.0002866,4]
[366656076,1750380645713,-490.0,0.0002866,4]
[366656077,1750380645724,-490.0,0.0002866,4]
[366656078,1750380645734,-1017.54,0.0002866,4]
[366656079,1750380645744,-4254.19,0.0002866,4]
[366656080,1750380645755,-706.03,0.0002866,4]
[366656081,1750380645766,-659.38,0.0002866,4]
[366656082,1750380645777,-490.0,0.0002866,4]
[366656083,1750380645787,-1341.529333,0.0002866,4]
[366656084,1750380645797,-801.4,0.0002866,4]
[366656085,1750380645809,-589.68,0.0002866,4]
[366656086,1750380645819,-809.75,0.0002866,4]
[366656087,1750380645829,-817.22,0.0002866,4]
[366656088,1750380645840,-490.0,0.0002866,4]
[366656089,1750380645852,-490.0,0.0002866,4]
[366656090,1750380645862,-711.53,0.0002866,4]
[366656091,1750380645886,-2382.45,0.0002866,4]
[366656092,1750380645896,-490.0,0.0002866,4]
[366656093,1750380645907,-490.0,0.0002866,4]
[366656094,1750380645917,-1890.14,0.0002866,4]
[366656095,1750380645927,-156.829419,0.0002866,4]
[366656096,1750380645938,-3178.98,0.0002866,4]
[366656097,1750380645948,-1594.61,0.0002866,4]
[366656098,1750380645959,-1294.24,0.0002866,4]
[366656099,1750380645969,-871.24,0.0002866,4]
[366656100,1750380645980,-2048.08,0.0002866,4]
[366656101,1750380645990,-490.0,0.0002866,4]
[366656102,1750380646001,-1285.08,0.0002866,4]
[366656103,1750380646011,-1434.9,0.0002866,4]
[366656105,1750380646022,-490.0,0.0002866,4]
[366656106,1750380646032,-691.32,0.0002866,4]
[366656107,1750380646043,-1691.63,0.0002866,4]
[366656108,1750380646054,-4676.79,0.0002866,4]
[366656109,1750380646064,-662.93,0.0002866,4]
[366656110,1750380646075,-1024.05,0.0002866,4]
[366656111,1750380646085,-2079.13,0.0002866,4]
[366656112,1750380646095,-490.0,0.0002866,4]
[366656113,1750380646105,-590.55,0.0002866,4]
[366656114,1750380646119,-3456.73,0.0002866,4]
[366656115,1750380646129,-658.81,0.0002866,4]
[366656116,1750380646139,-490.0,0.0002866,4]
[366656117,1750380646149,-746.15,0.0002866,4]
[366656118,1750380646161,-1734.38,0.0002866,4]
[366656119,1750380646172,-1623.29,0.0002866,4]
[366656120,1750380646182,-490.0,0.0002866,4]
[366656121,1750380646193,-490.0,0.0002866,4]
[366656122,1750380646203,-490.0,0.0002866,4]
[366656123,1750380646214,-83521.8336726,0.0002866,2]
[366656124,1750380646225,-11931.6905247,0.00028664,2]
[366656125,1750380646235,-500.0,0.00028664,4]
[366656126,1750380646246,-151.70456176,0.00028665,2]
[366656127,1750380646256,-509.23,0.00028665,2]
[366656128,1750380646267,-47726.7620986,0.00028665,2]
[366656129,1750380646279,-490.0,0.00028666,4]
[366656130,1750380646290,-490.0,0.00028666,4]
[366656131,1750380646300,-490.0,0.00028666,4]
[366656132,1750380646317,-490.0,0.00028666,4]
[366656133,1750380646328,-490.0,0.00028666,4]
[366656134,1750380646338,-490.0,0.00028666,4]
[366656135,1750380646348,-490.0,0.00028666,4]
[366656136,1750380646359,-490.0,0.00028666,4]
[366656137,1750380646369,-500.0,0.00028666,4]
[366656138,1750380646379,-490.0,0.00028666,4]
[366656139,1750380646390,-490.0,0.00028666,4]
[366656140,1750380646400,-490.0,0.00028666,4]
[366656141,1750380646411,-490.0,0.00028666,4]
[366656142,1750380646421,-490.0,0.00028666,4]
[366656143,1750380646432,-745.73,0.00028666,4]
[366656144,1750380646443,-490.0,0.00028666,4]
[366656145,1750380646455,-578.64079337,0.00028666,4]
[366656146,1750380646464,-490.0,0.00028666,4]
[366656147,1750380646475,-490.0,0.00028666,2]
[366656148,1750380646485,-490.0,0.00028666,4]
[366656149,1750380646496,-490.0,0.00028666,4]
[366656150,1750380646506,-490.0,0.00028666,2]
[366656151,1750380646517,-708.89,0.00028666,4]
[366656152,1750380646527,-490.0,0.00028666,4]
[366656153,1750380646538,-1210.46,0.00028666,4]
[366656154,1750380646549,-490.0,0.00028666,4]
[366656155,1750380646559,-490.0,0.00028666,4]
[366656156,1750380646570,-490.0,0.00028666,4]
[366656157,1750380646581,-490.0,0.00028666,4]
[366656158,1750380646592,-490.0,0.00028666,4]
[366656159,1750380646602,-490.0,0.00028666,4]
[366656160,1750380646613,-490.0,0.00028666,4]
[366656161,1750380646624,-490.0,0.00028666,4]
[366656162,1750380646635,-490.0,0.00028666,4]
[366656163,1750380646646,-490.0,0.00028666,4]
[366656164,1750380646657,-490.0,0.00028666,4]
[366656165,1750380646667,-490.0,0.00028666,4]
[366656166,1750380646677,-655.83,0.00028666,4]
[366656167,1750380646687,-490.0,0.00028666,4]
[366656168,1750380646698,-490.0,0.00028666,4]
[366656169,1750380646709,-490.0,0.00028666,4]
[366656170,1750380646720,-490.0,0.00028666,4]
[366656171,1750380646730,-490.0,0.00028666,4]
[366656172,1750380646740,-490.0,0.00028666,4]
[366656173,1750380646751,-490.0,0.00028666,4]
[366656174,1750380646761,-490.0,0.00028666,4]
[366656175,1750380646771,-499.68,0.00028666,4]
[366656176,1750380646782,-490.0,0.00028666,4]
[366656177,1750380646793,-490.0,0.00028666,4]
[366656178,1750380646803,-490.0,0.00028666,4]
[366656179,1750380646814,-490.0,0.00028666,4]
[366656180,1750380646825,-490.0,0.00028666,4]
[366656181,1750380646835,-490.0,0.00028666,4]
[366656182,1750380646846,-1489.31,0.00028666,4]
[366656183,1750380646857,-490.0,0.00028666,4]
[366656184,1750380646868,-973.74,0.00028666,4]
[366656185,1750380646879,-490.0,0.00028666,4]
[366656186,1750380646890,-490.0,0.00028666,4]
[366656187,1750380646903,-709.8,0.00028666,4]
[366656188,1750380646914,-490.0,0.00028666,4]
[366656189,1750380646924,-579.36,0.00028666,4]
[366656190,1750380646935,-474.32122102,0.00028666,4]
[366656191,1750380646946,-490.0,0.00028666,4]
[366656192,1750380646956,-642.48,0.00028666,4]
[366656193,1750380646967,-490.0,0.00028666,4]
[366656194,1750380646978,-490.0,0.00028666,4]
[366656195,1750380646988,-858.39,0.00028666,4]
[366656196,1750380647003,-490.0,0.00028666,4]
[366656197,1750380647013,-490.0,0.00028666,4]
[366656198,1750380647024,-490.0,0.00028666,4]
[366656199,1750380647034,-490.0,0.00028666,4]
[366656200,1750380647044,-444.29245203,0.00028666,4]
[366656201,1750380647054,-589.1607793,0.00028666,4]
[366656202,1750380647065,-374.1420544,0.00028666,4]
[366656203,1750380647075,-490.0,0.00028666,4]
[366656204,1750380647086,-654.25,0.00028666,4]
[366656205,1750380647096,-490.0,0.00028666,4]
[366656206,1750380647107,-524.82,0.00028666,4]
[366656207,1750380647121,-1253.59,0.00028666,4]
[366656208,1750380647132,-490.0,0.00028666,4]
[366656209,1750380647142,-490.0,0.00028666,4]
[366656210,1750380647153,-531.61,0.00028666,4]
[366656211,1750380647163,-490.0,0.00028666,4]
[366656212,1750380647173,-490.0,0.00028666,4]
[366656213,1750380647183,-490.0,0.00028666,4]
[366656214,1750380647193,-490.0,0.00028666,4]
[366656215,1750380647204,-490.0,0.00028666,4]
[366656216,1750380647215,-490.0,0.00028666,4]
[366656217,1750380647225,-490.0,0.00028666,4]
[366656218,1750380647234,-154.63084604,0.00028666,4]
[366656219,1750380647265,-335.36915396,0.00028666,4]
[366656220,1750380647275,-490.0,0.00028666,4]
[366656221,1750380647284,-753.77,0.00028666,4]
[366656222,1750380647295,-490.0,0.00028666,4]
[366656223,1750380647304,-703.76,0.00028666,4]
[366656224,1750380647315,-1715.21,0.00028666,4]
[366656225,1750380647324,-490.0,0.00028666,4]
[366656226,1750380647334,-749.73,0.00028666,4]
[366656227,1750380647344,-490.0,0.00028666,4]
[366656228,1750380647354,-525.7,0.00028666,4]
[366656229,1750380647364,-491.43544326,0.00028666,4]
[366656230,1750380647374,-490.0,0.00028666,4]
[366656231,1750380647383,-490.0,0.00028666,4]
[366656232,1750380647393,-490.0,0.00028666,4]
[366656233,1750380647403,-490.0,0.00028666,4]
[366656234,1750380647413,-551.87,0.00028666,4]
[366656235,1750380647423,-490.0,0.00028666,4]
[366656236,1750380647432,-1634.66,0.00028666,4]
[366656237,1750380647442,-490.0,0.00028666,4]
[366656238,1750380647452,-490.0,0.00028666,4]
[366656239,1750380647462,-490.0,0.00028666,4]
[366656240,1750380647471,-490.0,0.00028666,4]
[366656241,1750380647481,-490.0,0.00028666,4]
[366656242,1750380647492,-460.0,0.00028666,4]
[366656243,1750380647502,-408.09758278,0.00028666,4]
[366656244,1750380647512,-490.0,0.00028666,4]
[366656245,1750380647524,-490.0,0.00028666,4]
[366656246,1750380647534,-490.0,0.00028666,4]
[366656247,1750380647544,-490.0,0.00028666,4]
[366656248,1750380647554,-490.0,0.00028666,4]
[366656249,1750380647565,-351.59404635,0.00028666,4]
[366656250,1750380647575,-490.0,0.00028666,4]
[366656251,1750380647585,-490.0,0.00028666,4]
[366656252,1750380647596,-946.58,0.00028666,4]